Cogmind - Beta 10.2 *** ADVENTURER MODE // 2020.12.11 @ 20:11:27 Player: Departed Result: Destroyed by G-47 Trooper with Particle Gun Performance ------------- Evolutions (2) 1000 Regions Visited (4) 800 Robots Destroyed (45) 225 Value Destroyed (963) 963 Prototype IDs (2) 40 Alien Tech Used (0) 0 Bonus (0) 0 TOTAL SCORE: 3028 Bonus ------- None Cogmind --------- Core Integrity 0/550 Matter 147/300 Energy 100/100 System Corruption 0% Temperature Cool (9) Movement Core (550) Ox10 Location -8/Materials Parts ------- > --- POWER (2) -------- (None) > --- PROPULSION (2) --- (None) > --- UTILITY (4) ------ High-capacity Storage Unit > --- WEAPON (3) ------- (None) > --- INVENTORY (12) --- Ion Engine Armored Wheel Armored Wheel Armored Wheel Sensor Array Signal Interpreter Light Assault Rifle Grenade Launcher Mini Grenade Launcher Peak State ------------ > --- POWER ------------ Light Ion Engine Light Nuclear Core > --- PROPULSION ------- Aluminum Leg Aluminum Leg > --- UTILITY ---------- Heat Sink High-capacity Storage Unit Sensor Array Targeting Computer > --- WEAPON ----------- EM Shotgun Heavy Assault Rifle Mini Grenade Launcher > --- INVENTORY -------- Ion Engine Armored Wheel Armored Wheel Armored Wheel Sensor Array Signal Interpreter Heavy Assault Rifle Grenade Launcher Mining Laser [Rating: 17] Favorites ----------- Power Light Nuclear Core Engine Light Ion Engine Power Core Light Nuclear Core Propulsion Aluminum Leg Leg Aluminum Leg Wheel Armored Wheel Utility High-capacity Storage Unit Device Sensor Array Storage High-capacity Storage Unit Processor Targeting Computer Weapon Assault Rifle Energy Gun Beam Rifle Ballistic Gun Assault Rifle Launcher Grenade Launcher Special Weapon Mining Laser Build | -11 -10 -10 -9 -8 ------- Run | Scr Mat Min Mat Mat Slots Evolved 4 | . . . 2 2 Power 1 | . . . . 1 Propulsion . | . . . . . Utility 2 | . . . 1 1 Weapon 1 | . . . 1 . Parts Attached 40 | 5 10 . 18 7 Power 6 | 1 1 . 1 3 Engine 3 | 1 . . . 2 Core 3 | . 1 . 1 1 Reactor . | . . . . . Propulsion 11 | 2 3 . 6 . Treads . | . . . . . Leg 7 | 2 3 . 2 . Wheel 4 | . . . 4 . Hover . | . . . . . Flight . | . . . . . Utility 10 | . 5 . 4 1 Device 4 | . 2 . 1 1 Storage 4 | . 3 . 1 . Processor 2 | . . . 2 . Hackware . | . . . . . Protection . | . . . . . Artifact . | . . . . . Weapon 13 | 2 1 . 7 3 Energy Gun 3 | . . . 3 . Energy Cannon . | . . . . . Ballistic Gun 5 | 2 . . 2 1 Ballistic Cannon . | . . . . . Launcher 3 | . 1 . 1 1 Special Weapon 2 | . . . 1 1 Impact Weapon . | . . . . . Slashing Weapon . | . . . . . Piercing Weapon . | . . . . . Special Melee Weapon . | . . . . . Unidentified Prototypes . | . . . . . Parts Lost 12 | . . . 1 11 Power 2 | . . . . 2 Propulsion 2 | . . . . 2 Utility 3 | . . . . 3 Weapon 5 | . . . 1 4 Highest Loss Streak 10 | . . . 1 10 Average Slot Usage (%) 94 | . 93 100 97 87 Engine 2 | . 3 . . 8 Core 10 | . 10 14 10 7 Leg 13 | . 28 28 1 15 Wheel 9 | . . . 20 . Device 11 | . 9 14 11 15 Storage 12 | . 12 14 12 9 Processor 5 | . . . 9 8 Energy Gun 4 | . . . 8 1 Ballistic Gun 13 | . 17 14 9 13 Launcher 9 | . 10 14 9 7 Special Weapon 1 | . . . 3 . Naked Turns . | . . . . . Heaviest Build 77 | 7 74 43 77 51 Greatest Support 24 | 20 20 20 24 20 Greatest Overweight (x) 15 | . 3 2 3 15 Average Overweight (x) 1 | . 1 2 1 2 Largest Inventory Capacity 20 | 4 20 12 20 12 Average Capacity 11 | 4 10 12 13 12 Most Carried 13 | 2 9 8 13 10 Average Carried 7 | 1 6 8 9 8 Final Capacity 12 | 4 12 12 12 12 Final Carried 10 | 2 8 8 10 9 Class Distribution -------------------- 30% | Mutant 25% | Gunner 15% | Scavenger-Gunner 14% | Scavenger-Mutant 6% | Hauler-Skirmisher 3% | Skirmisher 3% | Hauler-Mutant Dominant Class ---------------- Mutant | -10/Materials Scavenger-Mutant | -10/Mines Gunner | -9/Materials Scavenger-Gunner | -8/Materials Resources | -11 -10 -10 -9 -8 ----------- Run | Scr Mat Min Mat Mat Matter Collected 979 | 190 215 43 404 127 Remotely . | . . . . . Salvage Created 1097 | . 252 12 674 159 Parts 92 | . 21 3 56 12 Haulers Intercepted . | . . . . . Recyclers Shooed 2 | . 1 . 1 . Parts Field Recycled . | . . . . . Retrieved Matter . | . . . . . Parts Self-Destructed . | . . . . . Prevented . | . . . . . Kills | -11 -10 -10 -9 -8 ------- Run | Scr Mat Min Mat Mat Combat Hostiles Destroyed 31 | . 7 3 15 6 Guns 20 | . 5 . 10 5 Cannons 1 | . . . . 1 AOE 10 | . 2 3 5 . Classes Destroyed 9 | . 4 . 4 1 Worker 5 | . 2 . 3 . Tunneler 2 | . . . 2 . Recycler 1 | . . . 1 . Mechanic 1 | . . . . 1 Watcher 5 | . 2 . 3 . Swarmer 13 | . 3 3 2 5 Grunt 15 | . 4 . 10 1 Brawler 1 | . . . 1 . Sentry 2 | . . . 2 . Best Kill Streak 8 | . 6 3 8 5 Combat Bots Only 5 | . 5 3 5 4 Max Kills in Single Turn 4 | . 3 3 4 1 Gunslinging . | . . . . . Exploded 3 | . 1 3 2 . Melee . | . . . . . Uniques/NPCs Destroyed . | . . . . . Combat | -11 -10 -10 -9 -8 -------- Run | Scr Mat Min Mat Mat Damage Taken 2289 | . 248 23 627 1391 Core 706 | . 48 . 99 559 Absorbed by Shields . | . . . . . Core Remaining (%) 85 | 100 . 80 75 . Volleys Fired 100 | . 26 1 48 25 Largest 3 | . 2 2 3 3 Hottest 180 | . 50 50 180 146 Shots Fired 173 | . 46 2 86 39 Gun 151 | . 44 1 70 36 Cannon . | . . . . . Launcher 19 | . 2 1 15 1 Special 3 | . . . 1 2 Kinetic 134 | . 44 1 53 36 Thermal 19 | . . . 17 2 Explosive 19 | . 2 1 15 1 Electromagnetic 1 | . . . 1 . Robot Hit Streak 13 | . 7 2 13 9 Robot Miss Streak 3 | . 2 . 2 3 Penetration Max . | . . . . . Secondary Targets 1 | . . . 1 . Max Gunslinging Chain 1 | . . . 1 . Shots Hit Robots 123 | . 31 2 64 26 Core Hits 66 | . 14 3 39 10 Critical Hits 2 | . 1 . 1 . Critical Kills . | . . . . . Critical Parts Destroyed 2 | . 1 . 1 . Melee Attacks . | . . . . . Impact . | . . . . . Slashing . | . . . . . Piercing . | . . . . . Sneak Attacks . | . . . . . Combat Hostiles . | . . . . . Follow-up Attacks . | . . . . . Damage Inflicted 2515 | . 508 137 1418 452 Guns 1510 | . 337 10 768 395 Cannons . | . . . . . Explosions 981 | . 171 127 650 33 Melee . | . . . . . Ramming . | . . . . . Kinetic 1312 | . 337 10 570 395 Thermal 188 | . . . 164 24 Explosive 981 | . 171 127 650 33 Electromagnetic 34 | . . . 34 . Impact . | . . . . . Slashing . | . . . . . Piercing . | . . . . . Highest Corruption . | . . . . . Average Corruption . | . . . . . Corruption Purged . | . . . . . Overload Shots . | . . . . . Overflow Damage . | . . . . . Projectiles . | . . . . . Explosions . | . . . . . Melee . | . . . . . Knockbacks . | . . . . . Impact . | . . . . . Kinetic . | . . . . . Secondary . | . . . . . Self-Inflicted Damage 43 | . . 16 27 . Shots 3 | . . 1 2 . Rammed . | . . . . . Targets Rammed . | . . . . . Kicked . | . . . . . Crushed . | . . . . . Highest Temperature 108 | . 8 . 102 108 Average Temperature 36 | . 4 . 34 56 Received Heat Transfer 1203 | . 72 . 294 837 Siege Activations . | . . . . . Robots Corrupted . | . . . . . Combat Hostiles . | . . . . . Parts Fried . | . . . . . Impact Corruptions . | . . . . . Robots Melted . | . . . . . Combat Hostiles . | . . . . . Parts Melted 2 | . . . 2 . Heat Transferred 494 | . . . 444 50 Parts Sabotaged . | . . . . . Parts Stolen . | . . . . . Parts Stripped . | . . . . . Power Chain Reactions . | . . . . . Missiles Intercepted . | . . . . . Alert | -11 -10 -10 -9 -8 ------- Run | Scr Mat Min Mat Mat Peak Influence 388 | . 233 89 388 308 Initial 139 | . . 10 28 139 Average 170 | . 135 26 198 252 Maximum Alert Level 1 | . 1 . 1 1 Low Security (%) 56 | 100 95 100 38 18 Level 1 43 | . 4 . 61 81 Level 2 . | . . . . . Level 3 . | . . . . . Level 4 . | . . . . . Level 5 . | . . . . . High Security . | . . . . . Max Security . | . . . . . Squads Dispatched 4 | . . . 2 2 Investigation 2 | . . . 2 . Extermination . | . . . . . Reinforcement 2 | . . . . 2 Assault . | . . . . . Garrison . | . . . . . Intercept . | . . . . . Construction Impeded . | . . . . . Haulers Reinforced . | . . . . . Stealth | -11 -10 -10 -9 -8 --------- Run | Scr Mat Min Mat Mat Distress Signals 2 | . 1 . 1 . Communications Jammed . | . . . . . Distress Signals . | . . . . . Times Spotted 52 | . 12 2 24 14 Peak Tracking Total 6 | . 3 3 6 6 Tactical Retreats 4 | . . . 3 1 Traps | -11 -10 -10 -9 -8 ------- Run | Scr Mat Min Mat Mat Traps Triggered . | . . . . . Indirectly . | . . . . . Trap Hack Attempts . | . . . . . Triggered . | . . . . . Disarmed 6 | . . . 6 . Reprogrammed . | . . . . . Reused . | . . . . . Traps Extracted . | . . . . . Installed . | . . . . . Triggered . | . . . . . Machines | -11 -10 -10 -9 -8 ---------- Run | Scr Mat Min Mat Mat Machines Disabled 4 | . . 1 2 1 Max in Single Turn 1 | . . 1 1 1 Machines Sabotaged . | . . . . . Garrisons Compromised . | . . . . . Overloaded Fab Kills . | . . . . . Fab Network Shutdowns . | . . . . . Hacking | -11 -10 -10 -9 -8 --------- Run | Scr Mat Min Mat Mat Machines Accessed 8 | . 2 . 5 1 Terminals 5 | . 2 . 3 . Fabricators . | . . . . . Repair Stations 2 | . . . 1 1 Recycling Units 1 | . . . 1 . Scanalyzers . | . . . . . Garrison Access . | . . . . . Total Hacks 36 | . 9 . 22 5 Successful 28 | . 6 . 17 5 Failed 8 | . 3 . 5 . Catastrophic 1 | . 1 . . . Database Lockouts . | . . . . . Manual . | . . . . . Terminals 16 | . 9 . 7 . Fabricators . | . . . . . Repair Stations 15 | . . . 10 5 Recycling Units 5 | . . . 5 . Scanalyzers . | . . . . . Garrison Access . | . . . . . Terminal Hacks 11 | . 6 . 5 . Record 3 | . 1 . 2 . Prototype ID Bank 1 | . . . 1 . Repair Station Index 1 | . 1 . . . Alert Level 1 | . 1 . . . Locate Traps 2 | . 1 . 1 . Disarm Traps 1 | . . . 1 . Dispatch Records 1 | . 1 . . . Surveillance Status 1 | . 1 . . . Fabricator Hacks . | . . . . . Repair Station Hacks 14 | . . . 9 5 Scan Component 8 | . . . 5 3 Repair 6 | . . . 4 2 Recycling Unit Hacks 3 | . . . 3 . Recycle Component 1 | . . . 1 . Process 1 | . . . 1 . Report Inventory 1 | . . . 1 . Scanalyzer . | . . . . . Garrison Access Hacks . | . . . . . Unauthorized Hacks . | . . . . . Terminals . | . . . . . Fabricators . | . . . . . Repair Stations . | . . . . . Recycling Units . | . . . . . Scanalyzers . | . . . . . Garrison Access . | . . . . . Data Cores Recovered . | . . . . . Used . | . . . . . Hacking Detections 5 | . 2 . 3 . Full Trace Events 3 | . 1 . 2 . Feedback Events . | . . . . . Feedback Blocked . | . . . . . Robot Schematics Acquired . | . . . . . Robots Built . | . . . . . Matter . | . . . . . Time . | . . . . . Total Robot Build Rating . | . . . . . Part Schematics Acquired . | . . . . . Parts Built . | . . . . . Matter . | . . . . . Time . | . . . . . Total Part Build Rating . | . . . . . Parts Repaired 6 | . . . 4 2 Time 186 | . . . 122 64 Parts Recycled 1 | . . . 1 . Recycled Matter 262 | . . . 262 . Retrieved Matter . | . . . . . Retrieved Components . | . . . . . Parts Scanalyzed . | . . . . . Part Schematics Acquired . | . . . . . Parts Damaged . | . . . . . Bothacking | -11 -10 -10 -9 -8 ------------ Run | Scr Mat Min Mat Mat Used RIF Installer . | . . . . . Robots Hacked . | . . . . . Non-combat . | . . . . . Combat . | . . . . . Robot Hacks Applied . | . . . . . Relay Couplers Released . | . . . . . Robots Rewired . | . . . . . Allies Hacked . | . . . . . Hacks Repelled . | . . . . . Allies | -11 -10 -10 -9 -8 -------- Run | Scr Mat Min Mat Mat Total Allies . | . . . . . Largest Group . | . . . . . Highest-Rated Group . | . . . . . Highest-Rated Ally . | . . . . . Total Orders . | . . . . . Ally Attacks . | . . . . . Total Damage . | . . . . . Kills . | . . . . . Allies Corrupted . | . . . . . Allies Melted . | . . . . . Intel | -11 -10 -10 -9 -8 ------- Run | Scr Mat Min Mat Mat Robot Analysis Total . | . . . . . Derelict Logs Recovered . | . . . . . Drone Launches . | . . . . . Drone Recoveries . | . . . . . Exploration | -11 -10 -10 -9 -8 ------------- Run | Scr Mat Min Mat Mat Turns Passed 1873 | 62 447 191 794 379 Spaces Moved 951 | 45 206 105 500 95 Core 6 | 5 . . . 1 Treads . | . . . . . Legs 468 | 40 206 105 23 94 Wheels 477 | . . . 477 . Hover . | . . . . . Flight . | . . . . . Fastest Speed 50 | 50 120 180 100 180 Average Speed 136 | 112 170 180 105 186 Slowest Speed 800 | 120 210 180 210 800 Overloaded Moves . | . . . . . Propulsion Burnouts . | . . . . . Robots Hopped . | . . . . . Cave-ins Triggered . | . . . . . Exploration Rate (%) 26 | 5 43 33 41 11 Regions Visited 4 Branch Regions 1 Pre-discovered Areas . | . . . . . Known Exits Taken . | . . . . . Unknown Exits Taken 4 | 1 1 1 1 . Scrap Searched 1 | . . 1 . . Spaces Dug . | . . . . . Terrain Destroyed 98 | . 13 4 80 1 Melee . | . . . . . Projectile 1 | . . . . 1 AOE 97 | . 13 4 80 . Terrain Rammed . | . . . . . Walls Destroyed . | . . . . . Machines Disabled . | . . . . . Actions | -11 -10 -10 -9 -8 --------- Run | Scr Mat Min Mat Mat Total 1352 | 56 257 105 679 255 Wait 210 | . . . 88 122 Move 947 | 44 205 104 499 95 Hop . | . . . . . Pick Up 41 | 7 10 . 19 5 Fast Attach 1 | . 1 . . . Attach 20 | 5 6 . 5 4 Detach 3 | . 3 . . . Swap 19 | . 3 . 13 3 Drop 11 | . 3 . 7 1 Fire 100 | . 26 1 48 25 Melee . | . . . . . Ram . | . . . . . Kick . | . . . . . Crush . | . . . . . Escape Stasis . | . . . . . Rewire . | . . . . . Trap . | . . . . . Miscellaneous . | . . . . . Route ------- -11/Scrapyard -10/Materials (discovered 2 exits: *Mat / [*Min]) -10/Mines -9/Materials (discovered 2 exits: *Mat / [*Min]) -8/Materials History --------- Turn | Location | Event 6 | -11/Scrapyard | Discovered new exit (range 15) 63 | -11/Scrapyard | Entered Materials 227 | -10/Materials | Discovered new exit (range 15) 227 | -10/Materials | Discovered new exit (range 14) 510 | -10/Materials | Entered Mines 666 | -10/Mines | Discovered new exit (range 6) 701 | -10/Mines | Entered Materials 701 | -9/Materials | Evolved 2 slots: Utility x1, Weapon x1 1123 | -9/Materials | Discovered new exit (range 15) 1206 | -9/Materials | Repaired Grenade Launcher 1244 | -9/Materials | Repaired Lgt. Nuclear Core 1277 | -9/Materials | Repaired Grenade Launcher 1379 | -9/Materials | Repaired Hvy. Assault Rifle 1468 | -9/Materials | Discovered new exit (range 16) 1495 | -9/Materials | Entered another Materials area 1495 | -8/Materials | Evolved 2 slots: Power x1, Utility x1 1751 | -8/Materials | Repaired Lgt. Nuclear Core 1779 | -8/Materials | Repaired Grenade Launcher 1852 | -8/Materials | Core integrity fell below 50% 1868 | -8/Materials | Core integrity fell below 20% 1874 | -8/Materials | Destroyed by G-47 Trooper with Particle Gun Last Messages --------------- 01779_ Repair station completes Grenade Launcher repairs. 01779_ K-01 Serf collects debris. 01782_ Acquired Grenade Launcher. 01782_ K-01 Serf collects debris. 01803_ Destroyed Lgt. Nuclear Core. 01806_ K-01 Serf collects debris. 01814_ Sensor Array destroyed. 01819_ Aluminum Leg destroyed. 01819_ G-47 Trooper destroyed. 01821_ R-06 Scavenger collects Lgt. Ion Engine. 01822_ Mining Laser destroyed. 01824_ Aluminum Leg destroyed. 01829_ R-06 Scavenger collects Particle Gun. 01830_ Lgt. Nuclear Core destroyed. 01832_ Hvy. Assault Rifle destroyed. 01835_ Lgt. Ion Engine destroyed. 01836_ R-06 Scavenger collects Wheel. 01837_ Hvy. Assault Rifle destroyed. 01846_ Heat Sink destroyed. 01848_ Targeting Computer destroyed. Map ----- +----------------------------------------------------+ | ????????????????????????????????????????? | | ????????????????????????????????????????? | | ????????????????????????????????????????? | | ????????????????????????????????????????? | | ????????????????????????????????????????? | | ????????????????????????????????????????? | | ????????????????????????????????????????? | | ????????????????????????????????????????? | | ????????????????????????????????????????? | | ????????????????????????????????????????? | | ????????????????????????????????????????? | | ????????????????????????????????????????? | | ????????????????????????????????????????? | | ????????????????????????????????????????? | | ?????????????????"??????????????????????? | | ?????????????????"??????????????????????? | | ???????????????? #????????????????????? | | ????????????????] ?????????????????????? | | ???#???????????? ??????????????????????? | | ???# ?????######/##?????????????????????? | | ???# ###### ??????????????????????? | | ???# ???????????????????????? | | ???# ????????????????????????? | | ???# ########?????????????????? | | ???# " # ! !#?????????????????? | | ???# ^ #@ #?????????????????? | | ???# " #gg""" #?????????????????? | | ???# +% R" #?????????????????? | | ???# # g""" #?????????????????? | | ???# # #?????????????????? | | ???# "T" ##########?????????????????? | | ???# """ #??????????????????????????? | | ???# = #??????????????????????????? | | ???# #??????????????????????????? | | ???#+# #??????????????????????????? | | ?????# #??????????????????????????? | | ?????# +??????????????????????????? | | ?????# #??????????????????????????? | | ?????# #??????????????????????????? | | ?????+ #??????????????????????????? | | ?????# #??????????????????????????? | | ?????# #??????????????????????????? | | ?????# #??????????????????????????? | | ?????# #??????????????????????????? | | ?????# #??????????????????????????? | | ?????# #??????????????????????????? | | ?????# #??????????????????????????? | | ?????# #??????????????????????????? | | ?#####+##+## #??????????????????????????? | | ?# # #??????????????????????????? | +----------------------------------------------------+ Best States ------------- Heat Dissipation 41 Energy Generation 19 Energy Capacity 185 Matter Stores 300 Matter Capacity 300 Sight Range 18 Robot Scan Range 10 Terrain Scan Density 10 Resistance: KI 20 Resistance: TH 20 Resistance: EX 20 Resistance: EM 20 Resistance: I 20 Resistance: S 20 Resistance: P 20 Evasion (%) 40 Targeting Accuracy 5 Offensive Hacking 10 Item Schematics ----------------- None Robot Schematics ------------------ None Fabricated ------------ Nothing Alien Tech Used ----------------- None Achievements -------------- None Challenges ------------ None Game ------ Seed AdvancedMagneticMultirail Manual? 0 Play Time 00:28:30 Cumulative 1.7 hours Start 2020.11.30 @ 16:07:09 End 2020.12.11 @ 20:11:27 Sessions 3 Manual Loads 0 Difficulty Adventurer Special Mode None Game No. 9 Rogue 0 Adventurer 9 Explorer 0 Win Type - Total 0 Types 0/0/0/0/0/0/0/0/0 Lore% 6 Gallery% 12 Achievement% 8 Wizard Run 0 Options --------- ASCII 0 Keyboard 0 Movement Mouse Keybinds 0 Fullscreen 1 Font 18/SmallcapsGlow Map View 76x50 Tactical HUD 1 Map Filters NONE Filters NONE Steam 1 RUN: dbc4b9d6-d5f2-46f1-b35c-8e28693bc971